lending/lending_fUSD_20240110
["ID","MTS","AMOUNT","RATE_DAILY","PERIOD"]
[311010851,1704864803723,151.4011,0.00022501,2]
[311010852,1704864825170,234.60743035,0.00022501,2]
[311010853,1704864826910,50491.89883886,0.00022501,2]
[311010854,1704864839170,279.53786743,0.00022501,2]
[311010855,1704864840933,50491.89883886,0.00022501,2]
[311010856,1704864860916,50491.89883886,0.00022501,2]
[311010857,1704864880917,22963.69829506,0.00022501,2]
[311010858,1704864946707,173.72,0.00020542,2]
[311010859,1704865184257,1965.990009,0.00037147,30]
[311010861,1704865373778,1772.18040764,0.00037147,30]
[311010862,1704865598889,1932.752725,0.00037147,30]
[311010863,1704865701442,304.949637,0.00037147,30]
[311010886,1704865832383,-155.0,0.00022833,2]
[311010887,1704865832393,-426.33301056,0.00022833,2]
[311010888,1704865832405,-822.71526644,0.00022833,2]
[311010889,1704865832414,-308.343717,0.00022834,2]
[311010890,1704865832425,-735.49044441,0.00022834,2]
[311010891,1704865832435,-248.37048046,0.00022835,2]
[311010892,1704865832444,-400.0,0.00022835,2]
[311010893,1704865832454,-386.39411499,0.00022835,2]
[311010894,1704865832463,-363.52386787,0.00022836,2]
[311010895,1704865832473,-4696.4400105,0.00022836,2]
[311010896,1704865832483,-42935.03320706,0.00022838,2]
[311010897,1704865832492,-24308.12626099,0.00022839,2]
[311010898,1704865832502,-3002.88934252,0.00022883,2]
[311010899,1704865832511,-200.0,0.00022998,2]
[311010900,1704865832521,-1135.21889309,0.00022998,2]
[311010901,1704865832530,-1701.1384753,0.00023,2]
[311010902,1704865832539,-150.99,0.00023,2]
[311010903,1704865832549,-150.0,0.00023095,2]
[311010904,1704865832558,-150.00000001,0.00023111,2]
[311010905,1704865832568,-207.0,0.00023134,2]
[311010906,1704865832577,-216.03,0.00023194,2]
[311010907,1704865832587,-457.11196569,0.00023288,4]
[311010908,1704865832596,-500.0,0.00023288,4]
[311010909,1704865832606,-492.81338259,0.00023288,4]
[311010910,1704865832615,-500.0,0.00023288,4]
[311010911,1704865832624,-482.32292029,0.00023288,4]
[311010912,1704865832633,-155.24644617,0.00023288,2]
[311010913,1704865832643,-394.96927842,0.00023288,2]
[311010914,1704865832652,-380.36057115,0.00023288,4]
[311010915,1704865832661,-152.58709281,0.00023288,4]
[311010916,1704865832671,-350.00000001,0.00023288,4]
[311010917,1704865832681,-500.0,0.00023288,4]
[311010918,1704865832690,-500.0,0.00023288,4]
[311010919,1704865832699,-250.0,0.00023288,4]
[311010920,1704865832708,-541.97979627,0.00023288,4]
[311010921,1704865832718,-500.0,0.00023288,4]
[311010922,1704865832727,-500.0,0.00023288,4]
[311010923,1704865832737,-151.65564453,0.00023288,4]
[311010924,1704865832747,-353.86317057,0.00023288,4]
[311010925,1704865832756,-848.00640222,0.00024308,2]
[311010926,1704865832765,-210.21,0.00024898,2]
[311010927,1704865832774,-661.99,0.00024903,2]
[311010929,1704865832784,-644.42618387,0.00024941,4]
[311010931,1704865832793,-243.02,0.00024941,2]
[311010933,1704865832802,-23900.0,0.00024951,2]
[311010935,1704865832811,-250.0,0.00024956,2]
[311010937,1704865832822,-154.84,0.00024982,2]
[311010939,1704865832831,-167.01566899,0.00025,2]
[311010941,1704865832840,-350.0,0.00025,3]
[311010942,1704865832849,-250.0,0.00025017,2]
[311010944,1704865832858,-234.61,0.00025322,2]
[311010946,1704865832867,-216.03,0.00025458,2]
[311010947,1704865832877,-154.5,0.00025678,2]
[311010948,1704865832886,-150.0,0.00026079,2]
[311010949,1704865832895,-207.0,0.00026206,6]
[311010950,1704865832905,-154.84,0.00026228,2]
[311010951,1704865832914,-3052.70643812,0.00026572,2]
[311010952,1704865832923,-221.02883633,0.00026572,2]
[311010953,1704865832932,-155.0,0.00026572,2]
[311010954,1704865832942,-7395.91,0.00026575,2]
[311010955,1704865832952,-4560.85,0.00026575,2]
[311010956,1704865832961,-154.5,0.00026961,2]
[311010957,1704865832970,-400.0,0.00027,3]
[311010958,1704865832980,-250.0,0.00027397,2]
[311010959,1704865832989,-250.0,0.000274,2]
[311010960,1704865832999,-154.84,0.00027473,2]
[311010961,1704865833008,-216.03,0.00027722,2]
[311010962,1704865833018,-1710.59145683,0.00027861,6]
[311010963,1704865833028,-687.51052193,0.00028,2]
[311010964,1704865833037,-661.99,0.00028016,2]
[311010965,1704865833047,-154.5,0.00028245,2]
[311010966,1704865833056,-246.64758345,0.00028312,2]
[311010967,1704865833066,-234.61,0.00028487,2]
[311010968,1704865833078,-202.43270691,0.00028496,4]
[311010969,1704865833087,-338.92310807,0.00028496,2]
[311010970,1704865833097,-1422.35998541,0.000285,2]
[311010971,1704865833109,-444.26220091,0.000285,2]
[311010972,1704865833134,-450.17009073,0.000285,2]
[311010973,1704865833171,-482.22900367,0.000285,2]
[311010974,1704865833183,-2310.08510084,0.000285,2]
[311010978,1704865838319,-157.10235344,0.00022737,2]
[311010979,1704865838331,-10354.53257223,0.000285,2]
[311010980,1704865838344,-333.42,0.000285,2]
[311010981,1704865838355,-520.61504761,0.000285,2]
[311010982,1704865838367,-313.97884406,0.000285,2]
[311010983,1704865838452,-2251.01528187,0.000285,2]
[311010984,1704865838464,-2147.99545334,0.000285,2]
[311010985,1704865838475,-552.0,0.000285,2]
[311010986,1704865838510,-6731.21419482,0.000285,2]
[311010987,1704865838521,-675.78429317,0.000285,2]
[311010988,1704865838533,-342.82992223,0.000285,2]
[311010989,1704865838565,-10491.52592241,0.000285,2]
[311010990,1704865838579,-1859.67759079,0.000285,2]
[311010991,1704865838623,-845.03557722,0.000285,2]
[311011013,1704865838983,-669.69355067,0.000285,2]
[311011014,1704865838995,-5950.82474578,0.000285,2]
[311011015,1704865839007,-1565.82284311,0.000285,2]
[311011016,1704865839018,-2272.07071383,0.000285,2]
[311011017,1704865839056,-969.39955089,0.000285,2]
[311011020,1704865841432,-6897.3,0.000285,2]
[311011021,1704865841461,-1196.63849997,0.000285,2]
[311011022,1704865841477,-484.29600592,0.000285,2]
[311011023,1704865841490,-357.71235685,0.000285,2]
[311011024,1704865841530,-365.49689089,0.000285,2]
[311011035,1704865843322,-2012.90060727,0.000285,2]
[311011036,1704865843336,-2104.90657844,0.000285,2]
[311011037,1704865843489,-17927.05150724,0.000285,2]
[311011059,1704865846527,-1226.43663959,0.00028499,2]
[311011060,1704865846538,-1109.59771516,0.00028499,2]
[311011061,1704865846657,-928.64,0.00028499,2]
[311011062,1704865846669,-594.57560495,0.00028499,2]
[311011066,1704865847203,-316.32,0.00028499,2]
[311011067,1704865898896,151.4011,0.00022501,2]
[311011068,1704865900600,151.4011,0.00022501,2]
[311011069,1704865901442,151.4011,0.00022501,2]
[311011070,1704865902131,151.4011,0.00022501,2]
[311011071,1704865902777,151.4011,0.00022501,2]
[311011072,1704865903487,151.4011,0.00022501,2]
[311011073,1704865904215,151.4011,0.00022501,2]
[311011074,1704865905001,151.4011,0.00022501,2]
[311011075,1704865906421,151.4011,0.00022501,2]
[311011076,1704865906612,151.4011,0.00022501,2]
[311011077,1704865907198,151.4011,0.00022501,2]
[311011078,1704865907961,151.4011,0.00022501,2]
[311011079,1704865908678,151.4011,0.00022501,2]
[311011080,1704865909849,151.4011,0.00022501,2]
[311011081,1704865910530,151.4011,0.00022501,2]
[311011082,1704865914356,151.4011,0.00022501,2]
[311011083,1704865917839,151.4011,0.00022501,2]
[311011084,1704865918552,151.4011,0.00022501,2]
[311011085,1704865935119,351.46,0.00022,2]
[311011086,1704865936737,500.0,0.00022501,2]
[311011087,1704865939049,176.88,0.00022391,2]
[311011088,1704865951398,500.0,0.00022501,2]
[311011089,1704865978567,14998.49549999,0.00037147,30]
[311011093,1704866083753,1965.990009,0.00037146,30]
[311011098,1704866164265,206.0,0.00022134,2]
[311011099,1704866187373,3900.13,0.00037146,30]
[311011106,1704866491962,1932.752725,0.00037188,30]
[311011107,1704866590702,304.949637,0.00037188,30]
[311011137,1704866988711,1965.990009,0.00037188,30]
[311011153,1704867031624,-155.0,0.00022731,2]
[311011154,1704867031633,-386.39411499,0.00022731,2]
[311011155,1704867031642,-650.75415232,0.00022732,2]
[311011156,1704867031651,-4696.4400105,0.00022732,2]
[311011157,1704867031661,-1042.41874522,0.00022733,2]
[311011158,1704867031670,-248.37048046,0.00022734,2]
[311011159,1704867031679,-24308.12626099,0.00022734,2]
[311011160,1704867031689,-400.0,0.00022735,2]
[311011161,1704867031699,-42935.03320706,0.00022737,2]
[311011162,1704867031708,-39000.0,0.00022738,2]
[311011163,1704867031717,-158.12484662,0.00022749,2]
[311011164,1704867031727,-158.12484662,0.00022825,2]
[311011165,1704867031736,-5810.1896986,0.00022879,2]
[311011166,1704867031745,-3863.68154787,0.00022887,2]
[311011167,1704867031754,-338.55890367,0.00022893,2]
[311011168,1704867031767,-345.44939268,0.00022897,2]
[311011169,1704867031780,-499.99,0.00022897,2]
[311011170,1704867031791,-961.8093,0.000229,2]
[311011171,1704867031800,-165.92287658,0.000229,2]
[311011172,1704867031811,-158.12484662,0.000229,2]
[311011173,1704867031821,-174.70904684,0.000229,2]
[311011174,1704867031830,-279.105947,0.000229,2]
[311011175,1704867031839,-19486.67272451,0.000229,2]
[311011176,1704867031852,-729.78385954,0.000229,2]
[311011177,1704867031863,-2690.62032694,0.000229,2]
[311011178,1704867031896,-1847.80554055,0.000229,2]
[311011182,1704867031909,-477.94521477,0.000229,2]
[311011185,1704867031921,-1623.94648798,0.000229,2]
[311011190,1704867031942,-10093.9527527,0.000229,2]
[311011231,1704867037634,-943.76,0.000229,2]
[311011233,1704867038054,-47089.27369301,0.000229,2]
[311011235,1704867038064,-191.66351868,0.000229,2]
[311011237,1704867038074,-171.33736682,0.000229,2]
[311011238,1704867038083,-730.78,0.00022998,2]
[311011239,1704867038092,-724450.51263591,0.00023,2]
[311011263,1704867038320,-1700.99333165,0.00023,2]
[311011265,1704867038331,-700.63939751,0.00023,2]
[311011269,1704867038352,-1301946.78059668,0.00023,2]
[311011271,1704867038362,-711.79,0.00023,2]
[311011273,1704867038372,-411611.52698025,0.00023,2]
[311011275,1704867038384,-100621.48070763,0.00023,2]
[311011277,1704867038393,-183.62,0.00023381,2]
[311011279,1704867038402,-206.0,0.00023577,2]
[311011281,1704867038414,-243.02,0.00023794,2]
[311011283,1704867038423,-537.95,0.00023929,2]
[311011285,1704867038431,-250.0,0.00024658,2]
[311011287,1704867038441,-153.52,0.00024764,2]
[311011289,1704867038450,-279.10594694,0.00024771,2]
[311011290,1704867038459,-12866.4,0.00025211,2]
[311011291,1704867038469,-183.62,0.00025645,2]
[311011292,1704867038478,-153.52,0.0002601,2]
[311011293,1704867038487,-150.0,0.00026079,2]
[311011294,1704867038497,-6163.25,0.00026575,2]
[311011295,1704867038506,-279.10594694,0.00026643,3]
[311011296,1704867038516,-537.95,0.0002692,2]
[311011297,1704867038525,-206.0,0.00027219,7]
[311011298,1704867038534,-153.52,0.00027255,2]
[311011299,1704867038544,-200.0,0.00027397,5]
[311011300,1704867038553,-250.0,0.00027397,2]
[311011301,1704867038563,-926.95101157,0.000274,2]
[311011302,1704867038572,-183.62,0.00027909,2]
[311011303,1704867038581,-326.66607586,0.00027945,5]
[311011304,1704867038590,-195.55571414,0.00028212,4]
[311011305,1704867038600,-4271.0,0.000283,2]
[311011306,1704867038611,-45237.0,0.000283,2]
[311011307,1704867038621,-5365.573367,0.00028495,2]
[311011308,1704867038630,-215692.7003746,0.00028495,2]
[311011309,1704867038640,-728.61,0.00028497,2]
[311011310,1704867038649,-1043.75705172,0.00028498,2]
[311011311,1704867038661,-218.45676095,0.00028498,2]
[311011312,1704867038670,-155.65047747,0.00028498,2]
[311011313,1704867038679,-437.48055634,0.00028499,2]
[311011314,1704867038688,-364.34785116,0.00028499,2]
[311011315,1704867038698,-150.01,0.00028499,2]
[311011316,1704867038707,-3290.92677058,0.00028499,2]
[311011317,1704867038716,-155.0,0.00028499,2]
[311011318,1704867038726,-858.801596,0.00028499,2]
[311011319,1704867038735,-379.60409532,0.00028499,2]
[311011320,1704867038744,-283.25543825,0.00028499,2]
[311011321,1704867038754,-598.77252319,0.00028499,2]
[311011322,1704867038763,-19007.7685775,0.00028499,2]
[311011323,1704867038772,-716.94,0.000285,2]
[311011324,1704867038781,-153.52,0.000285,2]
[311011325,1704867038791,-557.2557882,0.00028501,2]
[311011326,1704867038800,-279.10594694,0.00028514,4]
[311011327,1704867038809,-500.0,0.00028521,2]
[311011328,1704867038818,-1965.95996022,0.00028596,2]
[311011329,1704867038827,-202.45232284,0.00028597,2]
[311011330,1704867038836,-403.67230355,0.00028597,2]
[311011331,1704867038845,-1886.4927337,0.00028598,2]
[311011332,1704867038855,-7107.33817964,0.00028598,2]
[311011333,1704867038865,-500.0,0.00028684,2]
[311011334,1704867038874,-500.0,0.00028848,2]
[311011335,1704867038883,-354.0,0.00028939,5]
[311011336,1704867038893,-450.0,0.00029,3]
[311011337,1704867038902,-500.0,0.00029011,2]
[311011338,1704867038911,-500.0,0.00029175,2]
[311011339,1704867038920,-500.0,0.00029338,2]
[311011340,1704867038929,-1996.99074682,0.00029345,2]
[311011341,1704867038939,-150.0,0.00029446,2]
[311011342,1704867038948,-150.0,0.00029446,2]
[311011343,1704867038958,-150.0,0.00029446,2]
[311011344,1704867038967,-500.0,0.00029502,2]
[311011345,1704867038976,-500.0,0.00029666,2]
[311011346,1704867038985,-153.52,0.00029746,2]
[311011347,1704867038995,-500.0,0.00029829,2]
[311011348,1704867039004,-511.63545572,0.000299,2]
[311011349,1704867039015,-511.63545571,0.000299,2]
[311011350,1704867039025,-511.63545571,0.000299,2]
[311011351,1704867039034,-511.63545571,0.000299,2]
[311011352,1704867039044,-537.95,0.00029911,2]
[311011353,1704867039054,-500.0,0.00029993,2]
[311011354,1704867039063,-2431.455,0.00029996,2]
[311011355,1704867039073,-216.218,0.00029996,2]
[311011356,1704867039084,-1311.312,0.00029996,2]
[311011357,1704867039093,-1860.073,0.00029996,2]
[311011358,1704867039102,-3050.981,0.00029996,2]
[311011359,1704867039113,-838.0,0.00029996,2]
[311011360,1704867039124,-944.0,0.00029996,2]
[311011361,1704867039133,-1257.463,0.00029996,2]
[311011362,1704867039142,-736.471,0.00029996,2]
[311011363,1704867039152,-1361.618,0.00029996,2]
[311011364,1704867039161,-526.0,0.00029996,2]
[311011365,1704867039171,-1135.265,0.00029996,2]
[311011366,1704867039181,-616.768,0.00029996,2]
[311011367,1704867039190,-1027.915,0.00029996,2]
[311011368,1704867039199,-1930.0,0.00029996,2]
[311011369,1704867039209,-579.895,0.00029996,2]
[311011370,1704867039219,-318.132,0.00029996,2]
[311011371,1704867039230,-239.76,0.00029996,2]
[311011372,1704867039241,-458.14,0.00029996,2]
[311011373,1704867039250,-881.0,0.00029996,2]
[311011374,1704867039260,-19668.0,0.00029996,2]
[311011375,1704867039269,-2900.0,0.00029996,2]
[311011376,1704867039278,-2269.0,0.00029996,2]
[311011377,1704867039287,-434.067,0.00029996,2]
[311011378,1704867039296,-4200.667,0.00029996,2]
[311011379,1704867039306,-41991.0,0.00029996,2]
[311011380,1704867039315,-2730.298,0.00029996,2]
[311011381,1704867039324,-1056.432,0.00029996,2]
[311011382,1704867039333,-155.0,0.0003,2]
[311011383,1704867039342,-19999.999999,0.0003,2]
[311011384,1704867039352,-7242.0,0.0003,4]
[311011385,1704867039362,-8121.08953409,0.0003,2]
[311011386,1704867039371,-769.76626315,0.0003,4]
[311011387,1704867039380,-18989.11801624,0.0003,4]
[311011388,1704867039391,-1593.87262677,0.0003,4]
[311011389,1704867039400,-2363.17547187,0.0003,2]
[311011390,1704867039409,-3000.0,0.0003,2]
[311011391,1704867039418,-1000.0,0.0003,2]
[311011392,1704867039427,-156.0,0.0003,2]
[311011393,1704867039437,-450.0,0.0003002,3]
[311011394,1704867039446,-154.79,0.00030137,2]
[311011395,1704867039455,-1679.34,0.00030137,2]
[311011396,1704867039465,-500.0,0.00030156,2]
[311011397,1704867039474,-183.62,0.00030172,2]
[311011398,1704867039483,-500.0,0.0003032,2]
[311011399,1704867039492,-279.10594694,0.00030386,5]
[311011400,1704867039502,-500.0,0.00030483,2]
[311011401,1704867039510,-5403.42104519,0.00030647,14]
[311011402,1704867039520,-500.0,0.00030647,2]
[311011403,1704867039529,-293.69,0.0003069,2]
[311011404,1704867039538,-500.0,0.0003081,2]
[311011405,1704867039548,-206.0,0.00030861,13]
[311011406,1704867039557,-500.0,0.00030974,2]
[311011407,1704867039566,-153.52,0.00030991,2]
[311011408,1704867039575,-183.0,0.00030999,2]
[311011409,1704867039585,-500.0,0.00031,3]
[311011410,1704867039594,-500.0,0.00031138,2]
[311011411,1704867039604,-154.79,0.00031233,2]
[311011412,1704867039614,-500.0,0.00031301,2]
[311011413,1704867039623,-500.0,0.00031465,2]
[311011414,1704867039632,-239.91,0.00031507,2]
[311011415,1704867039642,-500.0,0.00031628,2]
[311011416,1704867039651,-200.0,0.00031744,3]
[311011417,1704867039661,-800.0,0.00031744,5]
[311011418,1704867039671,-500.0,0.00031792,2]
[311011419,1704867039680,-149969.16465043,0.000318,2]
[311011420,1704867039694,-78185.74981257,0.000318,2]
[311011421,1704867039703,-242.4372727,0.000319,2]
[311011422,1704867039712,-242.43727259,0.000319,2]
[311011423,1704867039722,-500.0,0.00031955,2]
[311011424,1704867039731,-150.0,0.00032,2]
[311011425,1704867039741,-500.0,0.00032119,2]
[311011426,1704867039750,-153.52,0.00032236,2]
[311011427,1704867039761,-279.10594694,0.00032257,5]
[311011428,1704867039773,-156.0,0.00032257,2]
[311011429,1704867039782,-500.0,0.00032283,2]
[311011430,1704867039792,-154.79,0.00032329,2]
[311011431,1704867039802,-183.62,0.00032436,2]
[311011432,1704867039813,-150.0,0.00032446,2]
[311011433,1704867039822,-500.0,0.00032446,2]
[311011434,1704867039832,-1000.0,0.00032579,7]
[311011435,1704867039843,-155.59620802,0.000326,4]
[311011436,1704867039852,-500.0,0.0003261,2]
[311011437,1704867039864,-405.52382202,0.00032707,21]
[311011438,1704867039873,-500.0,0.00032773,2]
[311011439,1704867039882,-3466.75640145,0.00032776,4]
[311011440,1704867039894,-17000.0,0.00032876,2]
[311011441,1704867039904,-17000.0,0.00032876,2]
[311011442,1704867039913,-17000.0,0.00032876,2]
[311011443,1704867039924,-17000.0,0.00032876,2]
[311011444,1704867039933,-17000.0,0.00032876,2]
[311011445,1704867039943,-17000.0,0.00032876,2]
[311011446,1704867039952,-17000.0,0.00032876,2]
[311011447,1704867039963,-17000.0,0.00032876,2]
[311011448,1704867039972,-17000.0,0.00032876,2]
[311011449,1704867039981,-17000.0,0.00032876,2]
[311011450,1704867039990,-17000.0,0.00032876,2]
[311011451,1704867040000,-17000.0,0.00032876,2]
[311011452,1704867040009,-17000.0,0.00032876,2]
[311011453,1704867040019,-17000.0,0.00032876,2]
[311011454,1704867040028,-17000.0,0.00032876,2]
[311011455,1704867040037,-17000.0,0.00032876,2]
[311011456,1704867040047,-7991.82358326,0.00032876,2]
[311011457,1704867040807,-511.63545571,0.000299,2]
[311011458,1704867040817,-475.48508224,0.00032876,2]
[311011459,1704867040828,-1197.97856962,0.00032876,2]
[311011460,1704867040863,-702.91805798,0.00032876,2]
[311011461,1704867040875,-3723.81727995,0.00032876,2]
[311011463,1704867040886,-468.67992952,0.00032876,2]
[311011465,1704867040897,-489.84713216,0.00032876,2]
[311011467,1704867040909,-423.69049305,0.00032876,2]
[311011469,1704867041014,-372.46008747,0.00032876,2]
[311011470,1704867041025,-1145.10809719,0.00032876,2]
[311011471,1704867041037,-8.19168756,0.00032876,2]
[311011472,1704867041047,-437.58125062,0.00032876,2]
[311011473,1704867041059,-2500.0,0.00032876,2]
[311011474,1704867041080,-485.49222264,0.00032876,2]
[311011475,1704867041093,-304.86594725,0.00032876,2]
[311011476,1704867041335,-13272.06057949,0.00032876,2]
[311011477,1704867041345,-17000.0,0.00032876,2]
[311011478,1704867041354,-17000.0,0.00032876,2]
[311011479,1704867041367,-8185.42121581,0.00032876,2]
[311011486,1704867042540,-5650.53306722,0.00032876,2]
[311011489,1704867042552,-355.73270651,0.00032876,2]
[311011496,1704867042617,-902.13189416,0.00032876,2]
[311011497,1704867042850,-1054.35475772,0.00032876,2]
[311011514,1704867045543,-319.31715993,0.000299,2]
[311011520,1704867046276,-192.31829578,0.000299,2]
[311011521,1704867046286,-333.70314074,0.00032875,4]
[311011522,1704867046295,-150.01,0.00032875,2]
[311011523,1704867046305,-148.06238334,0.00032875,2]
[311011524,1704867046316,-688.67575201,0.00032875,2]
[311011525,1704867046329,-2454.18863523,0.00032875,2]
[311011526,1704867046338,-851.82635858,0.00032876,2]
[311011527,1704867046348,-3133.71062293,0.00032876,2]
[311011528,1704867046529,-1151.03899492,0.00032876,2]
[311011529,1704867046558,-2361.46446316,0.00032876,2]
[311011530,1704867046570,-938.83527737,0.00032876,2]
[311011535,1704867251693,2107.705762,0.00022463,2]
[311011568,1704867383499,151.4011,0.00022501,2]
[311011570,1704867386101,151.4011,0.00022501,2]
[311011571,1704867386392,151.4011,0.00022501,2]
[311011573,1704867386810,151.4011,0.00022501,2]
[311011574,1704867387318,151.4011,0.00022501,2]
[311011576,1704867388048,151.4011,0.00022501,2]
[311011577,1704867388768,151.4011,0.00022501,2]
[311011579,1704867389614,151.4011,0.00022501,2]
[311011582,1704867390323,151.4011,0.00022501,2]
[311011584,1704867391004,151.4011,0.00022501,2]
[311011585,1704867391787,151.4011,0.00022501,2]
[311011587,1704867392493,151.4011,0.00022501,2]
[311011588,1704867392921,1932.752725,0.00037148,30]
[311011590,1704867393211,151.4011,0.00022501,2]
[311011591,1704867394052,151.4011,0.00022501,2]
[311011594,1704867395983,151.4011,0.00022501,2]
[311011596,1704867397288,151.4011,0.00022501,2]
[311011598,1704867397909,151.4011,0.00022501,2]
[311011603,1704867398653,151.4011,0.00022501,2]
[311011604,1704867399464,151.4011,0.00022501,2]
[311011605,1704867400193,151.4011,0.00022501,2]
[311011606,1704867486568,209.52932,0.00037148,30]
[311011615,1704867604086,206.0,0.00021577,2]
[311011616,1704867883019,1965.990009,0.00037166,30]
[311011617,1704868048792,265.67,0.00023877,10]
[311011621,1704868116539,221.71,0.00021903,2]
[311011622,1704868123711,248.37048046,0.00021902,2]
[311011627,1704868154994,436.02005816,0.00022501,2]
[311011630,1704868157421,650.75415232,0.00022501,2]
[311011631,1704868159888,1042.41874522,0.00022501,2]
[311011632,1704868170872,357.2581,0.00022418,2]
[311011633,1704868171789,383.58042321,0.00022501,2]
[311011635,1704868186220,2616.11953545,0.00022501,2]
[311011636,1704868188726,338.55890367,0.00022501,2]
[311011637,1704868200232,248.37048046,0.00022501,2]
[311011640,1704868207546,24308.12626099,0.00022501,2]
[311011641,1704868212995,4696.4400105,0.00022501,2]
[311011642,1704868225730,1042.41874522,0.00022501,2]
[311011658,1704868231687,-215.21809469,0.00022502,2]
[311011660,1704868231697,-386.39411499,0.00022502,2]
[311011663,1704868231706,-3747.10019381,0.00022502,2]
[311011665,1704868231717,-832.48880502,0.00022502,2]
[311011667,1704868231729,-960.61039043,0.00022502,2]
[311011671,1704868231753,-2091.29020676,0.00022502,2]
[311011682,1704868231957,-2028.27699632,0.00022502,2]
[311011683,1704868232012,-509.88536193,0.00022502,2]
[311011695,1704868237706,-1069.5,0.00022502,2]
[311011696,1704868238010,-31695.88125279,0.00022502,2]
[311011697,1704868238020,-437.26536885,0.00022503,2]
[311011698,1704868238030,-2185.66852659,0.00022503,2]
[311011699,1704868238039,-338.55890367,0.00022503,2]
[311011700,1704868238049,-156.01142805,0.00022503,2]
[311011701,1704868238059,-383.31449093,0.00022504,2]
[311011702,1704868238068,-195.55571414,0.00022668,4]
[311011703,1704868238078,-6951.6166,0.000228,2]
[311011704,1704868238087,-352.31361469,0.000228,2]
[311011705,1704868238096,-345.98728675,0.00022879,2]
[311011706,1704868238106,-218.45676095,0.00022897,2]
[311011707,1704868238115,-364.34785116,0.00022897,2]
[311011708,1704868238125,-1965.95996022,0.00022897,2]
[311011709,1704868238134,-155.65047747,0.00022897,2]
[311011710,1704868238143,-1043.75705172,0.00022897,2]
[311011711,1704868238152,-403.67230355,0.00022897,2]
[311011712,1704868238162,-202.45232284,0.00022897,2]
[311011713,1704868238171,-1886.4927337,0.00022898,2]
[311011714,1704868238180,-499.99,0.00022898,2]
[311011715,1704868238189,-4696.4400105,0.00022898,2]
[311011716,1704868238199,-24308.12626099,0.00022899,2]
[311011717,1704868238208,-1000.0,0.000229,2]
[311011719,1704868238217,-245000.0,0.000229,2]
[311011721,1704868238226,-7107.33817964,0.000229,2]
[311011723,1704868238235,-756.243,0.000229,2]
[311011724,1704868238246,-1390.92,0.000229,2]
[311011725,1704868238257,-207.0,0.00023779,2]
[311011726,1704868238266,-243.02,0.00023983,2]
[311011727,1704868238275,-12856.4,0.00024029,2]
[311011728,1704868238284,-162.03,0.00024056,2]
[311011729,1704868238293,-215.18,0.00024114,2]
[311011730,1704868238302,-169.3,0.00024157,2]
[311011731,1704868238318,-221.71,0.00024167,2]
[311011732,1704868238327,-250.0,0.00024658,2]
[311011733,1704868238336,-162.03,0.00024683,2]
[311011734,1704868238345,-350.0,0.00025,3]
[311011735,1704868238354,-169.3,0.00025136,2]
[311011736,1704868238363,-162.03,0.0002531,2]
[311011737,1704868238373,-522.78,0.00025978,2]
[311011738,1704868238382,-150.0,0.00026079,2]
[311011739,1704868238391,-169.3,0.00026114,2]
[311011740,1704868238401,-221.71,0.00026431,2]
[311011741,1704868238410,-5136.04,0.00026575,2]
[311011742,1704868238419,-4910.71,0.00026575,2]
[311011743,1704868238429,-400.0,0.00027,3]
[311011744,1704868238438,-207.0,0.00027071,7]
[311011745,1704868238447,-169.3,0.00027092,2]
[311011746,1704868238457,-215.18,0.00027129,2]
[311011747,1704868238466,-250.0,0.00027397,2]